Cogmind - Beta 9.6 @@@ ROGUE MODE // 2020.06.08 @ 20:12:19 Player: RNGesus Result: Destroyed by D-53 Grenadier with Mini Grenade Launcher Performance ------------- Evolutions (0) 0 Regions Visited (2) 400 Robots Destroyed (22) 110 Value Destroyed (481) 481 Prototype IDs (0) 0 Alien Tech Used (0) 0 Bonus (0) 0 TOTAL SCORE: 991 Bonus ------- None Cogmind --------- Core Integrity 0/250 Matter 295/300 Energy 79/100 System Corruption 0% Temperature Cool (0) Movement Walking (150) Ox1 Location -10/Mines Parts ------- > --- POWER (1) -------- (None) > --- PROPULSION (2) --- Aluminum Leg > --- UTILITY (2) ------ Small Storage Unit Medium Storage Unit > --- WEAPON (2) ------- Small Laser Mining Claw > --- INVENTORY (10) --- Ion Engine Light Nuclear Core Light Nuclear Core Aluminum Leg Aluminum Leg Aluminum Leg Peak State ------------ > --- POWER ------------ Ion Engine > --- PROPULSION ------- Aluminum Leg Aluminum Leg > --- UTILITY ---------- Small Storage Unit Medium Storage Unit > --- WEAPON ----------- Light Assault Rifle Light Cannon > --- INVENTORY -------- Ion Engine Light Nuclear Core Light Nuclear Core Aluminum Leg Small Laser Light Assault Rifle Mining Claw [Rating: 8] Favorites ----------- Power Ion Engine Engine Ion Engine Propulsion Aluminum Leg Leg Aluminum Leg Utility Small Storage Unit Storage Small Storage Unit Weapon Light Assault Rifle Energy Gun EM Pulse Gun Ballistic Gun Light Assault Rifle Ballistic Cannon Light Cannon Slashing Weapon Mining Claw Build | -11 -10 -10 ------- Run | Scr Mat Min Slots Evolved . | . . . Power . | . . . Propulsion . | . . . Utility . | . . . Weapon . | . . . Parts Attached 26 | 6 19 1 Power 3 | 1 2 . Engine 3 | 1 2 . Core . | . . . Reactor . | . . . Propulsion 11 | 2 9 . Treads . | . . . Leg 11 | 2 9 . Wheel . | . . . Hover . | . . . Flight . | . . . Utility 2 | 1 1 . Device . | . . . Storage 2 | 1 1 . Processor . | . . . Hackware . | . . . Protection . | . . . Artifact . | . . . Weapon 10 | 2 7 1 Energy Gun 3 | 2 . 1 Energy Cannon . | . . . Ballistic Gun 5 | . 5 . Ballistic Cannon 1 | . 1 . Launcher . | . . . Special Weapon . | . . . Impact Weapon . | . . . Slashing Weapon 1 | . 1 . Piercing Weapon . | . . . Special Melee Weapon . | . . . Unidentified Prototypes . | . . . Parts Lost 9 | . 6 3 Power 2 | . 1 1 Propulsion 3 | . 2 1 Utility . | . . . Weapon 4 | . 3 1 Highest Loss Streak 4 | . 4 3 Average Slot Usage (%) 95 | . 95 100 Engine 13 | . 13 14 Leg 27 | . 27 28 Storage 24 | . 24 28 Energy Gun 6 | . 7 . Ballistic Gun 15 | . 15 14 Ballistic Cannon 2 | . 2 . Slashing Weapon 3 | . 2 14 Naked Turns . | . . . Heaviest Build 21 | 10 21 20 Greatest Support 20 | 20 20 20 Greatest Overweight (x) 4 | 3 4 . Average Overweight (x) . | . . . Largest Inventory Capacity 10 | 6 10 10 Average Capacity 8 | 5 8 10 Most Carried 9 | 2 9 8 Average Carried 5 | 1 5 6 Final Capacity 10 | 6 10 10 Final Carried 9 | 2 9 6 Class Distribution -------------------- 50% | Scavenger-Mutant 49% | Mutant Dominant Class ---------------- Scavenger-Mutant | -10/Materials Scavenger-Mutant | -10/Mines Resources | -11 -10 -10 ----------- Run | Scr Mat Min Matter Collected 589 | 190 399 . Remotely . | . . . Salvage Created 699 | . 699 . Parts 43 | . 43 . Haulers Intercepted 1 | . 1 . Recyclers Shooed 1 | . 1 . Parts Field Recycled . | . . . Retrieved Matter . | . . . Parts Self-Destructed . | . . . Prevented . | . . . Kills | -11 -10 -10 ------- Run | Scr Mat Min Combat Hostiles Destroyed 16 | . 16 . Guns 12 | . 12 . Cannons 4 | . 4 . Classes Destroyed 6 | . 6 . Worker 2 | . 2 . Hauler 1 | . 1 . Recycler 1 | . 1 . Operator 2 | . 2 . Swarmer 6 | . 6 . Grunt 10 | . 10 . Best Kill Streak 5 | . 5 . Combat Bots Only 3 | . 3 . Max Kills in Single Turn 2 | . 2 . Gunslinging 1 | . 1 . Exploded . | . . . Melee . | . . . Uniques/NPCs Destroyed . | . . . Combat | -11 -10 -10 -------- Run | Scr Mat Min Damage Taken 1287 | . 1075 212 Core 261 | . 175 86 Absorbed by Shields . | . . . Core Remaining (%) 100 | 100 . . Volleys Fired 79 | 1 76 2 Largest 2 | 2 2 1 Hottest 80 | 80 80 40 Shots Fired 142 | 2 138 2 Gun 124 | 2 120 2 Cannon 18 | . 18 . Launcher . | . . . Special . | . . . Kinetic 115 | . 115 . Thermal 11 | 1 8 2 Explosive . | . . . Electromagnetic 16 | 1 15 . Robot Hit Streak 10 | 1 10 . Robot Miss Streak 3 | 1 3 3 Penetration Max . | . . . Secondary Targets 3 | . 3 . Max Gunslinging Chain 1 | . 1 . Shots Hit Robots 102 | 1 101 . Core Hits 41 | 1 40 . Critical Hits 1 | . 1 . Critical Kills . | . . . Critical Parts Destroyed 1 | . 1 . Melee Attacks 10 | . 10 . Impact . | . . . Slashing 10 | . 10 . Piercing . | . . . Sneak Attacks 2 | . 2 . Combat Hostiles . | . . . Follow-up Attacks . | . . . Damage Inflicted 1191 | 12 1179 . Guns 675 | 12 663 . Cannons 273 | . 273 . Explosions . | . . . Melee 243 | . 243 . Ramming . | . . . Kinetic 784 | . 784 . Thermal 34 | . 34 . Explosive . | . . . Electromagnetic 130 | 12 118 . Impact . | . . . Slashing 243 | . 243 . Piercing . | . . . Highest Corruption . | . . . Average Corruption . | . . . Corruption Purged . | . . . Overload Shots . | . . . Overflow Damage . | . . . Projectiles . | . . . Explosions . | . . . Melee . | . . . Knockbacks 4 | . 4 . Impact . | . . . Kinetic 3 | . 3 . Secondary 1 | . 1 . Self-Inflicted Damage . | . . . Shots . | . . . Rammed . | . . . Targets Rammed . | . . . Kicked . | . . . Crushed . | . . . Highest Temperature 108 | 18 108 . Average Temperature 33 | 12 33 . Received Heat Transfer 495 | . 495 . Siege Activations . | . . . Robots Corrupted . | . . . Combat Hostiles . | . . . Parts Fried . | . . . Impact Corruptions . | . . . Robots Melted . | . . . Combat Hostiles . | . . . Parts Melted . | . . . Heat Transferred 75 | . 75 . Parts Sabotaged . | . . . Parts Stolen . | . . . Parts Stripped . | . . . Power Chain Reactions . | . . . Missiles Intercepted . | . . . Alert | -11 -10 -10 ------- Run | Scr Mat Min Peak Influence 297 | . 297 51 Average Influence 151 | . 167 45 Maximum Alert Level 1 | . 1 . Low Security (%) 56 | 100 51 100 Level 1 43 | . 48 . Level 2 . | . . . Level 3 . | . . . Level 4 . | . . . Level 5 . | . . . High Security . | . . . Max Security . | . . . Squads Dispatched 4 | . 4 . Investigation 2 | . 2 . Extermination . | . . . Reinforcement 2 | . 2 . Assault . | . . . Garrison . | . . . Intercept . | . . . Construction Impeded . | . . . Haulers Reinforced . | . . . Stealth | -11 -10 -10 --------- Run | Scr Mat Min Distress Signals 3 | . 3 . Communications Jammed . | . . . Distress Signals . | . . . Times Spotted 40 | . 36 4 Peak Tracking Total 6 | . 6 4 Tactical Retreats 3 | . 3 . Traps | -11 -10 -10 ------- Run | Scr Mat Min Traps Triggered 4 | . 4 . Indirectly . | . . . Trap Hack Attempts . | . . . Triggered . | . . . Disarmed . | . . . Reprogrammed . | . . . Reused . | . . . Traps Extracted . | . . . Installed . | . . . Triggered . | . . . Machines | -11 -10 -10 ---------- Run | Scr Mat Min Machines Disabled . | . . . Max in Single Turn . | . . . Machines Sabotaged . | . . . Garrisons Compromised . | . . . Overloaded Fab Kills . | . . . Fab Network Shutdowns . | . . . Hacking | -11 -10 -10 --------- Run | Scr Mat Min Machines Accessed 2 | . 2 . Terminals 1 | . 1 . Fabricators . | . . . Repair Stations . | . . . Recycling Units 1 | . 1 . Scanalyzers . | . . . Garrison Access . | . . . Total Hacks 6 | . 6 . Successful 2 | . 2 . Failed 4 | . 4 . Catastrophic 1 | . 1 . Database Lockouts . | . . . Manual 4 | . 4 . Terminals 5 | . 5 . Fabricators . | . . . Repair Stations . | . . . Recycling Units 1 | . 1 . Scanalyzers . | . . . Garrison Access . | . . . Terminal Hacks . | . . . Fabricator Hacks . | . . . Repair Station Hacks . | . . . Recycling Unit Hacks . | . . . Scanalyzer . | . . . Garrison Access Hacks . | . . . Unauthorized Hacks 2 | . 2 . Terminals 1 | . 1 . Operators 1 | . 1 . Fabricators . | . . . Repair Stations . | . . . Recycling Units 1 | . 1 . Tunnel 1 | . 1 . Scanalyzers . | . . . Garrison Access . | . . . Data Cores Recovered . | . . . Used . | . . . Hacking Detections 1 | . 1 . Full Trace Events 1 | . 1 . Feedback Events . | . . . Feedback Blocked . | . . . Robot Schematics Acquired . | . . . Robots Built . | . . . Matter . | . . . Time . | . . . Total Robot Build Rating . | . . . Part Schematics Acquired . | . . . Parts Built . | . . . Matter . | . . . Time . | . . . Total Part Build Rating . | . . . Parts Repaired . | . . . Time . | . . . Parts Recycled . | . . . Recycled Matter . | . . . Retrieved Matter . | . . . Retrieved Components . | . . . Parts Scanalyzed . | . . . Part Schematics Acquired . | . . . Parts Damaged . | . . . Bothacking | -11 -10 -10 ------------ Run | Scr Mat Min Used RIF Installer . | . . . Robots Hacked . | . . . Non-combat . | . . . Combat . | . . . Robot Hacks Applied . | . . . Relay Couplers Released . | . . . Robots Rewired . | . . . Allies Hacked . | . . . Hacks Repelled . | . . . Allies | -11 -10 -10 -------- Run | Scr Mat Min Total Allies . | . . . Largest Group . | . . . Highest-Rated Group . | . . . Highest-Rated Ally . | . . . Total Orders . | . . . Ally Attacks . | . . . Total Damage . | . . . Kills . | . . . Allies Corrupted . | . . . Allies Melted . | . . . Intel | -11 -10 -10 ------- Run | Scr Mat Min Robot Analysis Total . | . . . Derelict Logs Recovered . | . . . Drone Launches . | . . . Drone Recoveries . | . . . Exploration | -11 -10 -10 ------------- Run | Scr Mat Min Turns Passed 898 | 63 801 34 Spaces Moved 451 | 40 389 22 Core 12 | 11 1 . Treads . | . . . Legs 439 | 29 388 22 Wheels . | . . . Hover . | . . . Flight . | . . . Fastest Speed 50 | 50 120 120 Average Speed 123 | 113 124 120 Slowest Speed 250 | 200 250 120 Overloaded Moves . | . . . Propulsion Burnouts . | . . . Robots Hopped . | . . . Cave-ins Triggered . | . . . Exploration Rate (%) 29 | 4 70 13 Regions Visited 2 Branch Regions 1 Pre-discovered Areas 1 | . 1 . Known Exits Taken . | . . . Unknown Exits Taken 2 | 1 1 . Scrap Searched . | . . . Spaces Dug . | . . . Terrain Destroyed . | . . . Melee . | . . . Projectile . | . . . AOE . | . . . Actions | -11 -10 -10 --------- Run | Scr Mat Min Total 642 | 52 560 30 Wait 66 | 4 59 3 Move 449 | 39 388 22 Hop . | . . . Pick Up 10 | 2 8 . Fast Attach 12 | 6 6 . Attach 7 | . 6 1 Detach . | . . . Swap 7 | . 7 . Drop 2 | . . 2 Fire 79 | 1 76 2 Melee 10 | . 10 . Ram . | . . . Kick . | . . . Crush . | . . . Escape Stasis . | . . . Rewire . | . . . Trap . | . . . Miscellaneous . | . . . Route ------- -11/Scrapyard -10/Materials (discovered 3 exits: [*Mat x2] / [*Min]) -10/Mines History --------- Turn | Location | Event 12 | -11/Scrapyard | Discovered new exit (range 16) 64 | -11/Scrapyard | Entered Materials 198 | -10/Materials | Discovered new exit (range 16) 340 | -10/Materials | Build established: Mutant 346 | -10/Materials | Lost 4 parts (1p3w) 402 | -10/Materials | Discovered new exit (range 14) 430 | -10/Materials | Core integrity fell below 50% 695 | -10/Materials | Discovered new exit (range 16) 753 | -10/Materials | Build established: Scavenger-Mutant 865 | -10/Materials | Entered Mines 866 | -10/Mines | Assembled infested the area 871 | -10/Mines | Assisted by a Guerilla fighting off Assembled 896 | -10/Mines | Core integrity fell below 20% 899 | -10/Mines | Destroyed by D-53 Grenadier with Mini Grenade Launcher Last Messages --------------- coming from, and they're closing on this area, come on!" 00873_ 7C-U58(h): "I'll hold them off! Go on ahead or try to find another way!" 00884_ HV Slug penetrates as-07195. 00884_ as-07195 suffers critical hit. 00884_ as-07195 destroyed. 00886_ HV Slug penetrates as-37538. 00886_ as-37538 knocked back. 00888_ HV Slug penetrates as-37538. 00888_ as-37538 destroyed. 00890_ HV Slug penetrates D-53 Grenadier. 00890_ D-53 Grenadier suffers critical hit. 00890_ D-53 Grenadier destroyed. 00890_ T-07 Excavator suffers critical hit. 00890_ T-07 Excavator destroyed. 00891_ Lgt. Assault Rifle destroyed. 00891_ Ion Engine destroyed. 00894_ D-53 Grenadier knocked back. 00895_ 7C-U58(h) destroyed. 00897_ Aluminum Leg destroyed. Map ----- +----------------------------------------------------+ | ?????????????????????????????????????????????????? | | ?????????????????????????????????????????????????? | | ?????????????????????????????????????????????????? | | ?????????????????????????????????????????????????? | | ?????????????????????????????????????????????????? | | ?????????????????????????????????????????????????? | | ?????????????????????????????????????????????????? | | ?????????????????????????????????????????????????? | | ?????????????????????????????????????????????????? | | ?????????????????????????????????????????????????? | | ?????????????????????????????????????????????????? | | ?????????????????????????????????????????????????? | | ????????????????????????##???????????????????????? | | ??????????????????????## ???????????????????????? | | ??????????????????????# ???????????????????????? | | ?????? ####???##?????# ??????????##???????????? | | ?????? ???# ???## ????????? ##??????????? | | ??????# ??# ?## #??????? #??????????? | | ???????# # ??# ? ?????? #??????????? | | ???????# ###? ????? #???????????? | | ????????# ### ###?? #????????????? | | ?????????# #?? # ### #????????????? | | ???####### ##??# #????????????? | | ??? " #### ? #????????????? | | ????? "%" ## # #????????????? | | ??????????# ##= = @ ;#?????????????????? | | ???????????# d !* #?????????????????? | | ???????????## [ ###?????????????????? | | ????????????## ] ### #??????????????????? | | ?????????????## ##?## # ?????????????????? | | ??????????????# #???###### ### ????????????????? | | ??????????????#####????????? #??? ??????????????? | | ???????????????????????????? #????# ?????????????? | | ???????????????????????????? #?????? ????????????? | | ???????????????????????????? #??????? ???????????? | | ???????????????????????????? #???????????????????? | | ?????????????????????????????#???????????????????? | | ?????????????????????????????????????????????????? | | ?????????????????????????????????????????????????? | | ?????????????????????????????????????????????????? | | ?????????????????????????????????????????????????? | | ?????????????????????????????????????????????????? | | ?????????????????????????????????????????????????? | | ?????????????????????????????????????????????????? | | ?????????????????????????????????????????????????? | | ?????????????????????????????????????????????????? | | ?????????????????????????????????????????????????? | | ?????????????????????????????????????????????????? | | ?????????????????????????????????????????????????? | | ?????????????????????????????????????????????????? | +----------------------------------------------------+ Best States ------------- Heat Dissipation 25 Energy Generation 10 Energy Capacity 250 Matter Stores 300 Matter Capacity 300 Sight Range 16 Terrain Scan Density 10 Evasion (%) 40 Item Schematics ----------------- None Robot Schematics ------------------ None Fabricated ------------ Nothing Alien Tech Used ----------------- None Achievements -------------- None Challenges ------------ None Game ------ Seed LobotomyBackupWand Manual? 0 Play Time 00:07:19 Cumulative 243.0 hours Start 2020.06.08 @ 15:24:49 End 2020.06.08 @ 20:12:19 Sessions 2 Manual Loads 0 Difficulty Rogue Special Mode None Game No. 398 Rogue 398 Adventurer 0 Explorer 0 Win Type - Total 5 Types 3/0/1/1/0/0/0 Lore% 81 Gallery% 81 Achievement% 60 Wizard Run 0 Options --------- ASCII 0 Keyboard 1 Movement Numpad Keybinds 0 Fullscreen 2 Font 18/X11Bold Map View 76x50 Tactical HUD 1 Map Filters NONE Filters NONE Steam 1 RUN: 44255d57-747e-4669-bb6a-60a77fe81bc5